fUSD/lending_fUSD_20250105
["ID","MTS","AMOUNT","RATE_DAILY","PERIOD"]
[347690374,1736067041669,-500.0,9.993e-05,2]
[347690375,1736067041679,-466.67,9.993e-05,2]
[347690376,1736067041688,-504.54,9.993e-05,2]
[347690377,1736067041697,-1245.55,9.993e-05,2]
[347690378,1736067041706,-500.0,9.993e-05,2]
[347690379,1736067041716,-500.0,9.993e-05,2]
[347690380,1736067041725,-178.87,9.993e-05,2]
[347690381,1736067041736,-500.0,9.993e-05,2]
[347690382,1736067041749,-502.41264288,9.993e-05,2]
[347690396,1736067043425,-500.0,9.992e-05,2]
[347690397,1736067043435,-3940.85735712,9.993e-05,2]
[347690398,1736067043444,-2275.05,9.993e-05,2]
[347690399,1736067043454,-500.0,9.993e-05,2]
[347690400,1736067043463,-500.0,9.993e-05,2]
[347690401,1736067043472,-3653.44,9.993e-05,2]
[347690402,1736067043481,-500.0,9.993e-05,2]
[347690403,1736067043491,-500.0,9.993e-05,2]
[347690404,1736067043500,-500.0,9.993e-05,2]
[347690405,1736067043509,-13268.04,9.993e-05,2]
[347690406,1736067043518,-500.0,9.993e-05,2]
[347690407,1736067043527,-500.0,9.993e-05,2]
[347690408,1736067043536,-500.0,9.993e-05,2]
[347690409,1736067043545,-500.0,9.993e-05,2]
[347690410,1736067043554,-500.0,9.993e-05,2]
[347690411,1736067043564,-500.0,9.993e-05,2]
[347690412,1736067043573,-500.0,9.993e-05,2]
[347690413,1736067043583,-500.0,9.993e-05,2]
[347690414,1736067043592,-500.0,9.993e-05,2]
[347690415,1736067043601,-500.0,9.993e-05,2]
[347690416,1736067043610,-226.03,9.993e-05,2]
[347690417,1736067043619,-1438.19,9.993e-05,2]
[347690418,1736067043627,-500.0,9.993e-05,2]
[347690419,1736067043636,-446.97,9.993e-05,2]
[347690420,1736067043646,-223.01,9.993e-05,2]
[347690421,1736067043655,-500.0,9.993e-05,2]
[347690422,1736067043663,-500.0,9.993e-05,2]
[347690423,1736067043672,-1619.78,9.993e-05,2]
[347690424,1736067043681,-500.0,9.993e-05,2]
[347690425,1736067043690,-298.4,9.993e-05,2]
[347690426,1736067043700,-500.0,9.993e-05,2]
[347690427,1736067043710,-500.0,9.993e-05,2]
[347690428,1736067043719,-490.53,9.993e-05,2]
[347690429,1736067043728,-500.0,9.993e-05,2]
[347690430,1736067043738,-500.0,9.993e-05,2]
[347690431,1736067043750,-263.98,9.993e-05,2]
[347690432,1736067043758,-798.77,9.993e-05,2]
[347690433,1736067043767,-500.0,9.993e-05,2]
[347690434,1736067043776,-500.0,9.993e-05,2]
[347690435,1736067043785,-500.0,9.993e-05,2]
[347690436,1736067043795,-3199.32,9.993e-05,2]
[347690437,1736067043804,-500.0,9.993e-05,2]
[347690439,1736067043813,-500.0,9.993e-05,2]
[347690441,1736067043822,-500.0,9.993e-05,2]
[347690443,1736067043831,-500.0,9.993e-05,2]
[347690445,1736067043841,-500.0,9.993e-05,2]
[347690447,1736067043850,-544.09,9.993e-05,2]
[347690449,1736067043859,-2471.67,9.993e-05,2]
[347690450,1736067043868,-500.0,9.993e-05,2]
[347690452,1736067043877,-569.34,9.993e-05,2]
[347690454,1736067043887,-500.0,9.993e-05,2]
[347690456,1736067043896,-500.0,9.993e-05,2]
[347690458,1736067043905,-510.58,9.993e-05,2]
[347690460,1736067043914,-500.0,9.993e-05,2]
[347690462,1736067043923,-5779.69,9.993e-05,2]
[347690464,1736067043932,-440.76,9.993e-05,2]
[347690466,1736067043941,-504.51,9.993e-05,2]
[347690468,1736067043951,-500.0,9.993e-05,2]
[347690470,1736067043959,-500.0,9.993e-05,2]
[347690471,1736067043969,-500.0,9.993e-05,2]
[347690473,1736067043978,-1509.28,9.993e-05,2]
[347690476,1736067043990,-500.0,9.993e-05,2]
[347690477,1736067043999,-500.0,9.993e-05,2]
[347690479,1736067044008,-292.19,9.993e-05,2]
[347690481,1736067044017,-500.0,9.993e-05,2]
[347690483,1736067044026,-500.0,9.993e-05,2]
[347690485,1736067044035,-500.0,9.993e-05,2]
[347690487,1736067044045,-757.76,9.993e-05,2]
[347690489,1736067044055,-500.0,9.993e-05,2]
[347690491,1736067044063,-500.0,9.993e-05,2]
[347690493,1736067044072,-1502.32,9.993e-05,2]
[347690494,1736067044081,-500.0,9.993e-05,2]
[347690495,1736067044090,-500.0,9.993e-05,2]
[347690496,1736067044100,-500.0,9.994e-05,2]
[347690497,1736067044109,-500.0,9.994e-05,2]
[347690498,1736067044117,-772.88,9.994e-05,2]
[347690499,1736067044127,-500.0,9.994e-05,2]
[347690500,1736067044136,-500.0,9.994e-05,2]
[347690501,1736067044145,-500.0,9.994e-05,2]
[347690502,1736067044154,-500.0,9.994e-05,2]
[347690503,1736067044163,-500.0,9.994e-05,2]
[347690504,1736067044172,-500.0,9.994e-05,2]
[347690505,1736067044182,-500.0,9.994e-05,2]
[347690506,1736067044191,-1000.0,9.994e-05,2]
[347690507,1736067044200,-500.0,9.994e-05,2]
[347690508,1736067044209,-105.49325807,9.994e-05,2]
[347690509,1736067044221,-394.50674193,9.994e-05,2]
[347690510,1736067044231,-500.0,9.994e-05,2]
[347690511,1736067044241,-500.0,9.997e-05,2]
[347690512,1736067044251,-500.0,9.997e-05,2]
[347690513,1736067044259,-500.0,9.997e-05,2]
[347690514,1736067044268,-500.0,9.997e-05,2]
[347690515,1736067044277,-500.0,9.997e-05,2]
[347690516,1736067044287,-500.0,9.997e-05,2]
[347690517,1736067044296,-500.0,9.997e-05,2]
[347690518,1736067044305,-206.56792627,9.997e-05,2]
[347690519,1736067044315,-500.0,9.997e-05,2]
[347690520,1736067044324,-500.0,9.997e-05,2]
[347690521,1736067044334,-585.17687265,9.997e-05,2]
[347690522,1736067044343,-500.0,9.997e-05,2]
[347690523,1736067044353,-664.87,9.997e-05,2]
[347690524,1736067044363,-500.0,9.997e-05,2]
[347690525,1736067044372,-500.0,9.997e-05,2]
[347690526,1736067044382,-500.0,9.997e-05,2]
[347690527,1736067044391,-500.0,9.997e-05,2]
[347690528,1736067044400,-500.0,9.997e-05,2]
[347690529,1736067044410,-500.0,9.997e-05,2]
[347690530,1736067044420,-939.69,9.997e-05,2]
[347690531,1736067044429,-501.52147164,9.997e-05,2]
[347690532,1736067044438,-500.0,9.997e-05,2]
[347690533,1736067044447,-500.0,9.997e-05,2]
[347690534,1736067044456,-500.0,9.997e-05,2]
[347690535,1736067044465,-500.0,9.997e-05,2]
[347690536,1736067044474,-641.70006782,9.997e-05,2]
[347690537,1736067044501,-143.21993218,9.997e-05,2]
[347690538,1736067044511,-114.55262278,9.997e-05,2]
[347690539,1736067044528,-385.44737722,9.997e-05,2]
[347690540,1736067044539,-500.0,9.997e-05,2]
[347690541,1736067044548,-500.0,9.997e-05,2]
[347690542,1736067044558,-500.0,9.997e-05,2]
[347690543,1736067044568,-500.0,9.997e-05,2]
[347690544,1736067044577,-500.0,9.997e-05,2]
[347690545,1736067044586,-500.0,9.997e-05,2]
[347690546,1736067044595,-437.91573981,9.997e-05,2]
[347690547,1736067044604,-500.0,9.997e-05,2]
[347690548,1736067044614,-238.63688297,9.997e-05,2]
[347690553,1736067046355,-1044.09,9.992e-05,2]
[347690554,1736067046366,-261.36311703,9.997e-05,2]
[347690555,1736067046376,-500.0,9.997e-05,2]
[347690556,1736067046385,-192.96437449,9.997e-05,2]
[347690557,1736067046409,-307.03562551,9.997e-05,2]
[347690558,1736067046419,-500.0,9.997e-05,2]
[347690559,1736067046428,-500.0,9.997e-05,2]
[347690560,1736067046438,-500.0,9.997e-05,2]
[347690561,1736067046447,-617.0,9.997e-05,2]
[347690562,1736067046457,-500.0,9.997e-05,2]
[347690563,1736067046466,-500.0,9.997e-05,2]
[347690564,1736067046476,-500.0,9.997e-05,2]
[347690565,1736067046485,-500.0,9.997e-05,2]
[347690566,1736067046495,-694.66,9.997e-05,2]
[347690567,1736067046504,-441.60132396,9.997e-05,2]
[347690568,1736067046512,-500.0,9.997e-05,2]
[347690569,1736067046522,-192.9365568,9.997e-05,2]
[347690570,1736067046531,-796.31,9.997e-05,2]
[347690571,1736067046540,-500.0,9.997e-05,2]
[347690572,1736067046549,-500.0,9.997e-05,2]
[347690573,1736067046558,-504.8605703,9.997e-05,2]
[347690574,1736067046566,-367.22463614,9.997e-05,2]
[347690575,1736067046576,-500.0,9.997e-05,2]
[347690576,1736067046585,-500.0,9.997e-05,2]
[347690577,1736067046594,-500.0,9.997e-05,2]
[347690578,1736067046603,-500.0,9.997e-05,2]
[347690579,1736067046613,-500.0,9.997e-05,2]
[347690580,1736067046622,-500.0,9.997e-05,2]
[347690581,1736067046631,-500.0,9.997e-05,2]
[347690582,1736067046640,-500.0,9.997e-05,2]
[347690583,1736067046649,-500.0,9.997e-05,2]
[347690584,1736067046658,-500.0,9.997e-05,2]
[347690585,1736067046668,-501.90073142,9.997e-05,2]
[347690586,1736067046677,-500.0,9.997e-05,2]
[347690587,1736067046687,-500.0,9.997e-05,2]
[347690588,1736067046696,-500.0,9.997e-05,2]
[347690589,1736067046705,-978.69,9.997e-05,2]
[347690590,1736067046715,-500.0,9.997e-05,2]
[347690591,1736067046724,-500.0,9.997e-05,2]
[347690592,1736067046733,-500.0,9.997e-05,2]
[347690593,1736067046744,-500.0,9.997e-05,2]
[347690594,1736067046755,-500.0,9.997e-05,2]
[347690595,1736067046765,-500.0,9.997e-05,2]
[347690596,1736067046774,-500.0,9.997e-05,2]
[347690597,1736067046783,-500.0,9.997e-05,2]
[347690598,1736067046792,-967.4,9.997e-05,2]
[347690599,1736067046801,-500.0,9.997e-05,2]
[347690600,1736067046811,-597.19640243,9.997e-05,2]
[347690601,1736067046820,-716.78,9.997e-05,2]
[347690602,1736067046830,-494.20841866,9.997e-05,2]
[347690603,1736067046839,-500.0,9.997e-05,2]
[347690605,1736067046848,-500.0,9.997e-05,2]
[347690607,1736067046857,-504.14895999,9.997e-05,2]
[347690608,1736067046866,-500.0,9.997e-05,2]
[347690610,1736067046876,-500.0,9.997e-05,2]
[347690612,1736067046885,-500.0,9.997e-05,2]
[347690614,1736067046894,-500.0,9.997e-05,2]
[347690616,1736067046903,-501.06893707,9.997e-05,2]
[347690618,1736067046913,-500.0,9.997e-05,2]
[347690620,1736067046922,-500.0,9.997e-05,2]
[347690622,1736067046931,-797.24,9.997e-05,2]
[347690624,1736067046940,-502.40494804,9.997e-05,2]
[347690626,1736067046949,-500.0,9.997e-05,2]
[347690629,1736067046959,-500.0,9.997e-05,2]
[347690631,1736067046968,-500.0,9.997e-05,2]
[347690633,1736067046977,-500.0,9.997e-05,2]
[347690635,1736067046986,-500.0,9.997e-05,2]
[347690637,1736067046999,-503.39992979,9.997e-05,2]
[347690639,1736067047008,-500.0,9.997e-05,2]
[347690641,1736067047017,-500.0,9.997e-05,2]
[347690643,1736067047026,-183.63440232,9.997e-05,2]
[347690645,1736067047035,-500.0,9.997e-05,2]
[347690648,1736067047044,-500.0,9.997e-05,2]
[347690650,1736067047054,-500.0,9.997e-05,2]
[347690652,1736067047063,-500.0,9.997e-05,2]
[347690654,1736067047072,-500.0,9.997e-05,2]
[347690656,1736067047082,-707.93,9.997e-05,2]
[347690658,1736067047092,-517.37568429,9.997e-05,2]
[347690660,1736067047101,-500.0,9.997e-05,2]
[347690662,1736067047111,-500.0,9.997e-05,2]
[347690664,1736067047119,-500.0,9.997e-05,2]
[347690666,1736067047129,-500.0,9.997e-05,2]
[347690668,1736067047138,-504.69820936,9.997e-05,2]
[347690670,1736067047147,-500.0,9.997e-05,2]
[347690672,1736067047156,-500.0,9.997e-05,2]
[347690674,1736067047165,-500.0,9.997e-05,2]
[347690676,1736067047174,-500.0,9.997e-05,2]
[347690678,1736067047183,-770.69,9.997e-05,2]
[347690680,1736067047193,-500.0,9.997e-05,2]
[347690681,1736067047202,-560.94,9.997e-05,2]
[347690683,1736067047211,-500.0,9.997e-05,2]
[347690685,1736067047221,-500.0,9.997e-05,2]
[347690687,1736067047230,-500.0,9.997e-05,2]
[347690689,1736067047240,-500.0,9.997e-05,2]
[347690691,1736067047248,-500.0,9.997e-05,2]
[347690693,1736067047258,-500.0,9.997e-05,2]
[347690696,1736067047268,-500.0,9.997e-05,2]
[347690697,1736067047277,-500.0,9.997e-05,2]
[347690699,1736067047287,-500.0,9.997e-05,2]
[347690701,1736067047296,-500.0,9.997e-05,2]
[347690703,1736067047306,-1334.32,9.997e-05,2]
[347690705,1736067047315,-500.0,9.997e-05,2]
[347690707,1736067047325,-681.71,9.997e-05,2]
[347690708,1736067047334,-500.0,9.997e-05,2]
[347690709,1736067047343,-123.47926392,9.997e-05,2]
[347690710,1736067047356,-376.52073608,9.997e-05,2]
[347690711,1736067047365,-500.0,9.997e-05,2]
[347690712,1736067047374,-500.0,9.997e-05,2]
[347690713,1736067047383,-546.85,9.997e-05,2]
[347690714,1736067047393,-500.0,9.997e-05,2]
[347690715,1736067047402,-500.0,9.997e-05,2]
[347690716,1736067047412,-500.0,9.997e-05,2]
[347690717,1736067047421,-1274.38,9.997e-05,2]
[347690718,1736067047430,-500.0,9.997e-05,2]
[347690719,1736067047439,-500.0,9.997e-05,2]
[347690720,1736067047448,-500.0,9.997e-05,2]
[347690721,1736067047457,-500.0,9.997e-05,2]
[347690722,1736067047466,-500.0,9.997e-05,2]
[347690723,1736067047474,-3495.34,9.997e-05,2]
[347690724,1736067047483,-500.0,9.997e-05,2]
[347690725,1736067047494,-500.0,9.997e-05,2]
[347690726,1736067047503,-2637.96,9.997e-05,2]
[347690727,1736067047513,-500.0,9.997e-05,2]
[347690728,1736067047522,-500.0,9.997e-05,2]
[347690729,1736067047531,-500.0,9.997e-05,2]
[347690730,1736067047540,-500.0,9.997e-05,2]
[347690731,1736067047550,-500.0,9.997e-05,2]
[347690732,1736067047559,-500.0,9.997e-05,2]
[347690733,1736067047568,-500.0,9.997e-05,2]
[347690734,1736067047577,-1736.03,9.997e-05,2]
[347690735,1736067047586,-500.0,9.997e-05,2]
[347690736,1736067047595,-500.0,9.997e-05,2]
[347690737,1736067047604,-500.0,9.997e-05,2]
[347690738,1736067047614,-500.0,9.997e-05,2]
[347690739,1736067047623,-500.0,9.997e-05,2]
[347690740,1736067047632,-500.0,9.997e-05,2]
[347690741,1736067047643,-500.0,9.997e-05,2]
[347690742,1736067047652,-512.76,9.997e-05,2]
[347690743,1736067047661,-153.39,9.997e-05,2]
[347690744,1736067047670,-1222.35086892,9.997e-05,2]
[347690745,1736067047685,-613.59913108,9.997e-05,2]
[347690746,1736067047694,-500.0,9.998e-05,2]
[347690747,1736067047703,-500.0,9.998e-05,2]
[347690748,1736067047712,-546.67,9.998e-05,2]
[347690749,1736067047722,-1113.09,9.999e-05,2]
[347690750,1736067047731,-509.43,9.999e-05,2]
[347690751,1736067047740,-603.72,9.999e-05,2]
[347690752,1736067047753,-583.9,9.999e-05,2]
[347690753,1736067047762,-759.45,9.999e-05,2]
[347690754,1736067047771,-504.13,9.999e-05,2]
[347690755,1736067047780,-6871.92,9.999e-05,2]
[347690756,1736067047790,-611.58,9.999e-05,2]
[347690757,1736067047799,-1018.46,9.999e-05,2]
[347690758,1736067047808,-500.0,9.999e-05,2]
[347690759,1736067047817,-500.0,9.999e-05,2]
[347690760,1736067047827,-500.0,9.999e-05,2]
[347690761,1736067047836,-500.0,9.999e-05,2]
[347690762,1736067047845,-1005.8,9.999e-05,2]
[347690763,1736067047854,-500.0,9.999e-05,2]
[347690764,1736067047863,-500.0,9.999e-05,2]
[347690765,1736067047872,-500.0,9.999e-05,2]
[347690766,1736067047881,-500.0,9.999e-05,2]
[347690767,1736067047891,-500.0,9.999e-05,2]
[347690768,1736067047900,-4303.85,9.999e-05,2]
[347690769,1736067047911,-4247.12,9.999e-05,2]
[347690770,1736067047921,-4532.69,9.999e-05,2]
[347690771,1736067047931,-3809.2521147,9.999e-05,2]
[347690772,1736067047941,-500.0,9.999e-05,2]
[347690773,1736067047953,-4542.16,9.999e-05,2]
[347690774,1736067047964,-11906.8406328,9.999e-05,2]
[347690775,1736067047973,-17523.54,9.999e-05,2]
[347690776,1736067047983,-3949.63,9.999e-05,2]
[347690777,1736067047993,-434.67302679,0.0001,2]
[347690778,1736067048284,-1348.80990501,0.0001,2]
[347690779,1736067048299,-263.21584521,0.0001,2]
[347690780,1736067066394,21788.44984292,0.00022,120]
[347690789,1736067557114,243.23,0.00022,120]
[347690795,1736067680039,150.0,0.00022,120]
[347690796,1736067680779,150.0,0.00022,120]
[347690797,1736067681347,150.0,0.00022,120]
[347690798,1736067681403,150.0,0.00022,120]
[347690799,1736067681711,150.0,0.00022,120]
[347690800,1736067682166,150.0,0.00022,120]
[347690801,1736067682454,150.0,0.00022,120]
[347690802,1736067682777,150.0,0.00022,120]
[347690803,1736067683075,200.0,0.00022,120]
[347690804,1736067683578,200.0,0.00022,120]
[347690805,1736067683750,206.44191425,0.00022,120]
[347690808,1736067807479,150.0,0.00022,120]
[347690810,1736067890088,1098.0,0.00022,120]
[347690811,1736067975687,355.06755212,0.00018,90]
[347690812,1736068004941,5050.0,0.00013,30]
[347690813,1736068005128,-199.56942745,8.219e-05,2]
[347690814,1736068009576,1079.46424683,0.00017,60]
[347690815,1736068033156,5050.0,0.00013,31]
[347690816,1736068072276,850.0,0.0001,20]
[347690817,1736068106684,5050.0,0.0001,21]
[347690818,1736068162080,-445.68057255,8.219e-05,2]
[347690819,1736068162103,-2427.81045345,8.724e-05,2]
[347690825,1736068231560,-306.09,8.715e-05,2]
[347690826,1736068231569,-476.9338291,8.724e-05,2]
[347690827,1736068231621,-1482.6,8.724e-05,2]
[347690828,1736068231729,-2212.16571745,8.724e-05,2]
[347690829,1736068231739,-300.0,8.741e-05,2]
[347690830,1736068231748,-10683.97081666,8.742e-05,2]
[347690847,1736068232242,-6861.83597816,8.742e-05,2]
[347690849,1736068232254,-330.23018751,8.742e-05,2]
[347690850,1736068232265,-1164.44999995,8.742e-05,2]
[347690851,1736068232290,-574.95341846,8.742e-05,2]
[347690852,1736068232311,-1396.50221221,8.742e-05,2]
[347690857,1736068237467,-387.09738705,8.742e-05,2]
[347690858,1736068237477,-101.82279094,9.093e-05,2]
[347690859,1736068237489,-288.98720906,9.093e-05,2]
[347690860,1736068237499,-29.95068312,9.105e-05,2]
[347690861,1736068237523,-220.04931688,9.105e-05,2]
[347690862,1736068237532,-50000.0,9.121e-05,2]
[347690863,1736068237544,-343.08,9.148e-05,2]
[347690864,1736068237553,-150.0,9.173e-05,2]
[347690865,1736068237563,-150.0,9.173e-05,2]
[347690866,1736068237572,-150.0,9.173e-05,2]
[347690867,1736068237581,-150.0,9.173e-05,2]
[347690868,1736068237591,-150.0,9.241e-05,2]
[347690869,1736068237600,-150.0,9.265e-05,2]
[347690870,1736068237609,-150.0,9.308e-05,2]
[347690871,1736068237619,-150.0,9.318e-05,2]
[347690872,1736068237628,-150.0,9.358e-05,2]
[347690873,1736068237637,-150.0,9.376e-05,2]
[347690874,1736068237646,-150.0,9.444e-05,2]
[347690875,1736068237655,-150.0,9.451e-05,2]
[347690876,1736068237665,-150.0,9.464e-05,2]
[347690877,1736068237674,-290.347,9.5e-05,2]
[347690878,1736068237683,-150.0,9.512e-05,2]
[347690879,1736068237692,-150.0,9.543e-05,2]
[347690880,1736068237700,-150.0,9.58e-05,2]
[347690881,1736068237709,-150.0,9.609e-05,2]
[347690882,1736068237718,-150.0,9.636e-05,2]
[347690883,1736068237727,-150.0,9.648e-05,2]
[347690884,1736068237736,-150.0,9.716e-05,2]
[347690885,1736068237746,-150.0,9.729e-05,2]
[347690886,1736068237755,-150.0,9.755e-05,2]
[347690887,1736068237764,-150.0,9.784e-05,2]
[347690888,1736068237773,-150.0,9.821e-05,2]
[347690889,1736068237782,-150.0,9.852e-05,2]
[347690890,1736068237794,-624.9938,9.899e-05,2]
[347690891,1736068237803,-2886.50389513,9.9e-05,2]
[347690892,1736068237815,-17038.95334627,9.9e-05,2]
[347690893,1736068237824,-150.0,9.901e-05,2]
[347690894,1736068237833,-150.0,9.914e-05,2]
[347690895,1736068237842,-150.0,9.92e-05,2]
[347690896,1736068237850,-150.0,9.988e-05,2]
[347690898,1736068237859,-807.14140686,9.991e-05,2]
[347690900,1736068237871,-2977.91859314,9.991e-05,2]
[347690902,1736068237880,-472.87,9.991e-05,2]
[347690904,1736068237889,-740.68,9.991e-05,2]
[347690906,1736068237898,-500.0,9.992e-05,2]
[347690908,1736068237907,-154.63,9.992e-05,2]
[347690910,1736068237916,-500.0,9.992e-05,2]
[347690913,1736068237925,-500.0,9.992e-05,2]
[347690915,1736068237934,-500.0,9.992e-05,2]
[347690920,1736068237944,-500.0,9.992e-05,2]
[347690922,1736068237952,-228.38,9.992e-05,2]
[347690926,1736068237962,-500.0,9.992e-05,2]
[347690928,1736068237970,-500.0,9.992e-05,2]
[347690931,1736068237979,-500.0,9.992e-05,2]
[347690934,1736068237989,-500.0,9.992e-05,2]
[347690937,1736068237997,-500.0,9.992e-05,2]
[347690940,1736068238007,-500.0,9.992e-05,2]
[347690943,1736068238015,-554.12,9.992e-05,2]
[347690946,1736068238025,-500.0,9.992e-05,2]
[347690949,1736068238034,-500.0,9.992e-05,2]
[347690952,1736068238045,-500.0,9.992e-05,2]
[347690954,1736068238055,-500.0,9.992e-05,2]
[347690957,1736068238064,-500.0,9.992e-05,2]
[347690959,1736068238073,-500.0,9.992e-05,2]
[347690961,1736068238082,-500.0,9.992e-05,2]
[347690963,1736068238091,-500.0,9.992e-05,2]
[347690965,1736068238101,-500.0,9.992e-05,2]
[347690967,1736068238110,-500.0,9.992e-05,2]
[347690969,1736068238118,-500.0,9.992e-05,2]
[347690970,1736068238128,-500.0,9.992e-05,2]
[347690971,1736068238137,-500.0,9.992e-05,2]
[347690973,1736068238146,-500.0,9.992e-05,2]
[347690975,1736068238155,-500.0,9.992e-05,2]
[347690977,1736068238164,-483.37,9.992e-05,2]
[347690979,1736068238173,-500.0,9.992e-05,2]
[347690981,1736068238181,-638.92,9.992e-05,2]
[347690983,1736068238190,-500.0,9.992e-05,2]
[347690985,1736068238199,-500.0,9.992e-05,2]
[347690987,1736068238208,-500.0,9.992e-05,2]
[347690989,1736068238217,-500.0,9.992e-05,2]
[347690991,1736068238226,-400.31,9.992e-05,2]
[347690993,1736068238235,-630.86,9.992e-05,2]
[347690995,1736068238244,-500.0,9.992e-05,2]
[347690997,1736068238253,-500.0,9.992e-05,2]
[347690998,1736068238262,-524.72,9.992e-05,2]
[347691000,1736068238271,-500.0,9.992e-05,2]
[347691002,1736068238280,-218.02319687,9.992e-05,2]
[347691005,1736068238296,-281.97680313,9.992e-05,2]
[347691007,1736068238305,-500.0,9.992e-05,2]
[347691009,1736068238318,-500.0,9.992e-05,2]
[347691011,1736068238328,-500.0,9.992e-05,2]
[347691013,1736068238337,-500.0,9.992e-05,2]
[347691015,1736068238347,-647.33,9.992e-05,2]
[347691017,1736068238357,-500.0,9.992e-05,2]
[347691019,1736068238366,-500.0,9.992e-05,2]
[347691021,1736068238375,-500.0,9.992e-05,2]
[347691023,1736068238384,-500.0,9.992e-05,2]
[347691025,1736068238393,-500.0,9.992e-05,2]
[347691027,1736068238402,-704.3,9.992e-05,2]
[347691028,1736068238412,-500.0,9.992e-05,2]
[347691030,1736068238421,-500.0,9.992e-05,2]
[347691032,1736068238430,-500.0,9.992e-05,2]
[347691034,1736068238440,-500.0,9.992e-05,2]
[347691036,1736068238449,-500.0,9.992e-05,2]
[347691038,1736068238459,-300.93,9.992e-05,2]
[347691040,1736068238468,-500.0,9.992e-05,2]
[347691042,1736068238477,-500.0,9.992e-05,2]
[347691044,1736068238486,-500.0,9.992e-05,2]
[347691046,1736068238495,-500.0,9.992e-05,2]
[347691048,1736068238504,-428.63,9.992e-05,2]
[347691050,1736068238513,-500.0,9.992e-05,2]
[347691052,1736068238523,-500.0,9.992e-05,2]
[347691054,1736068238532,-1066.72,9.992e-05,2]
[347691056,1736068238542,-578.57,9.992e-05,2]
[347691058,1736068238551,-500.0,9.992e-05,2]
[347691060,1736068238560,-559.57,9.992e-05,2]
[347691062,1736068238569,-1497.02,9.992e-05,2]
[347691064,1736068238578,-727.8,9.992e-05,2]
[347691066,1736068238587,-500.0,9.993e-05,2]
[347691067,1736068238598,-500.0,9.993e-05,2]
[347691068,1736068238606,-500.0,9.993e-05,7]
[347691069,1736068238615,-500.0,9.993e-05,2]
[347691070,1736068238624,-190.63,9.993e-05,2]
[347691071,1736068238633,-500.0,9.993e-05,2]
[347691072,1736068238643,-500.0,9.993e-05,2]
[347691073,1736068238652,-5000.0,9.993e-05,2]
[347691074,1736068238661,-587.82,9.997e-05,2]
[347691075,1736068238670,-643.80473872,9.998e-05,2]
[347691076,1736068238679,-500.0,9.998e-05,2]
[347691077,1736068238688,-500.0,9.998e-05,2]
[347691078,1736068238697,-1940.49,9.998e-05,2]
[347691079,1736068238706,-500.0,9.998e-05,2]
[347691080,1736068238715,-1034.29,9.998e-05,2]
[347691081,1736068238724,-4133.93,9.998e-05,2]
[347691082,1736068238733,-1445.19,9.998e-05,2]
[347691084,1736068238742,-4937.03,9.998e-05,2]
[347691086,1736068238752,-2518.7,9.998e-05,2]
[347691087,1736068238761,-3501.21,9.998e-05,2]
[347691088,1736068238770,-14943.2,9.998e-05,2]
[347691089,1736068238779,-500.0,9.998e-05,2]
[347691090,1736068238788,-1650.14,9.998e-05,2]
[347691091,1736068238798,-500.0,9.998e-05,2]
[347691092,1736068238807,-1998.73,9.998e-05,2]
[347691093,1736068238937,-4153.89,9.998e-05,2]
[347691094,1736068238979,-972.63,9.998e-05,2]
[347691095,1736068238989,-6176.53,9.998e-05,2]
[347691096,1736068238998,-3732.07,9.998e-05,2]
[347691097,1736068239007,-3634.05,9.998e-05,2]
[347691098,1736068239016,-1283.03,9.998e-05,2]
[347691099,1736068239025,-3285.5,9.998e-05,2]
[347691100,1736068239035,-7013.37,9.998e-05,2]
[347691101,1736068239046,-4703.85,9.998e-05,2]
[347691102,1736068239056,-4590.3,9.998e-05,2]
[347691103,1736068239066,-1814.78,9.998e-05,2]
[347691104,1736068239075,-500.0,9.998e-05,2]